Cogmind - Beta 13 @@@ ROGUE MODE // 2024.06.10 @ 10:14:47 Player: Minty Result: Destroyed by C8-J2K(R) with Subdweller Machine Gun Performance ------------- Evolutions (0) 0 Regions Visited (2) 400 Robots Destroyed (13) 65 Value Destroyed (405) 405 Prototype IDs (0) 0 Alien Tech Used (0) 0 Bonus (0) 0 TOTAL SCORE: 870 Bonus ------- None Cogmind --------- Core Integrity 0/250 Matter 300/300 Energy 98/100 System Corruption 11% Temperature Cool (13) Movement Treading (160) Location -10/Subcaves Parts ------- > --- POWER (1) -------- (None) > --- PROPULSION (2) --- Light Treads > --- UTILITY (2) ------ Small Storage Unit > --- WEAPON (2) ------- (None) > --- INVENTORY (8) ---- Ion Engine Light Treads Aluminum Leg Compact Wheel Improved Terrain Scanner Terrain Scan Processor Peak State ------------ > --- POWER ------------ Light Ion Engine > --- PROPULSION ------- Wheel Wheel > --- UTILITY ---------- Small Storage Unit Makeshift Light Armor Plating > --- WEAPON ----------- Subdweller Laser Subdweller Machine Gun > --- INVENTORY -------- Ion Engine Light Treads Light Treads Aluminum Leg Compact Wheel Improved Terrain Scanner Terrain Scan Processor [Rating: 13] Favorites ----------- Power Light Ion Engine Engine Light Ion Engine Propulsion Aluminum Leg Treads Light Treads Leg Aluminum Leg Wheel Wheel Utility Small Storage Unit Device Structural Scanner Storage Small Storage Unit Processor Signal Interpreter Protection Makeshift Light Armor Plating Weapon EM Pulse Gun Energy Gun EM Pulse Gun Ballistic Gun Assault Rifle Special Weapon Mining Laser Build | -11 -10 -10 ------- Run | Yrd Mat Sub Slots Evolved . | . . . Power . | . . . Propulsion . | . . . Utility . | . . . Weapon . | . . . Parts Attached 17 | . 11 6 Power . | . . . Engine . | . . . Core . | . . . Reactor . | . . . Propulsion 5 | . 2 3 Treads 1 | . . 1 Leg 2 | . 2 . Wheel 2 | . . 2 Hover . | . . . Flight . | . . . Utility 3 | . 2 1 Device 1 | . 1 . Storage . | . . . Processor 1 | . 1 . Hackware . | . . . Protection 1 | . . 1 Artifact . | . . . Weapon 9 | . 7 2 Energy Gun 6 | . 5 1 Energy Cannon . | . . . Ballistic Gun 1 | . . 1 Ballistic Cannon . | . . . Launcher . | . . . Special Weapon 2 | . 2 . Impact Weapon . | . . . Slashing Weapon . | . . . Piercing Weapon . | . . . Special Melee Weapon . | . . . Unidentified Prototypes . | . . . Corrupted Parts 2 | . 1 1 System Corruption 11 | . 2 9 Parts Lost 10 | . 2 8 Power 1 | . . 1 Propulsion 3 | . 1 2 Utility 1 | . . 1 Weapon 5 | . 1 4 Highest Loss Streak 6 | . 2 6 To Critical Strikes . | . . . Average Slot Usage (%) 94 | . 93 96 Engine 13 | . 14 13 Leg 20 | . 25 12 Wheel 6 | . . 14 Device 4 | . 4 3 Storage 14 | . 14 14 Processor 4 | . 7 . Protection 4 | . . 10 Energy Gun 20 | . 18 22 Ballistic Gun 5 | . 6 4 Naked Turns . | . . . Heaviest Build 20 | 12 13 20 Greatest Support 20 | 20 20 20 Greatest Overweight (x) 1 | . 1 . Average Overweight (x) . | . . . Largest Inventory Capacity 8 | 8 8 8 Average Capacity 8 | 8 8 8 Most Carried 8 | 6 8 8 Average Carried 7 | 6 6 7 Final Capacity 8 | 8 8 8 Final Carried 8 | 6 8 6 Class Distribution -------------------- 100% | Mutant Dominant Class ---------------- Mutant | -10/Materials Mutant | -10/Subcaves Resources | -11 -10 -10 ----------- Run | Yrd Mat Sub Matter Collected 428 | 187 161 80 Remotely . | . . . Salvage Created 558 | . 260 298 Parts 39 | . 23 16 Haulers Intercepted . | . . . Recyclers Shooed . | . . . Parts Field Recycled . | . . . Retrieved Matter . | . . . Parts Self-Destructed 2 | . . 2 Prevented . | . . . Kills | -11 -10 -10 ------- Run | Yrd Mat Sub Combat Hostiles Destroyed 9 | . 4 5 Guns 8 | . 4 4 Classes Destroyed 6 | . 4 2 Builder 2 | . 2 . Tunneler 1 | . 1 . Operator 1 | . 1 . Grunt 4 | . 4 . Cobbler 1 | . . 1 Subdweller 5 | . . 5 Best Kill Streak 3 | . 3 2 Combat Bots Only 3 | . 3 2 Max Kills in Single Turn 1 | . 1 1 Gunslinging . | . . . Exploded . | . . . Melee . | . . . Uniques/NPCs Destroyed . | . . . Combat | -11 -10 -10 -------- Run | Yrd Mat Sub Hostile Shots Fired 102 | . 46 56 Missed 26 | . 15 11 Damage Taken 1451 | . 434 1017 Core 271 | . 62 209 Absorbed by Shields . | . . . Core Remaining (%) 100 | 100 . . Volleys Fired 72 | . 40 32 Largest 2 | . 2 2 Hottest 140 | . 140 90 Shots Fired 114 | . 58 56 Gun 112 | . 56 56 Cannon . | . . . Launcher . | . . . Special 2 | . 2 . Kinetic 36 | . 25 11 Thermal 7 | . 2 5 Explosive . | . . . Electromagnetic 71 | . 31 40 Robot Hit Streak 13 | . 12 13 Robot Miss Streak 3 | . 3 2 Penetration Max . | . . . Secondary Targets . | . . . Shots Hit Robots 78 | . 36 42 Core Hits 26 | . 12 14 Critical Kills . | . . . Critical Parts Destroyed . | . . . Critical Strikes 1 | . . 1 Corrupt 1 | . . 1 Melee Attacks . | . . . Impact . | . . . Slashing . | . . . Piercing . | . . . Sneak Attacks . | . . . Combat Hostiles . | . . . Follow-up Attacks . | . . . Damage Inflicted 1042 | . 529 513 Guns 1003 | . 490 513 Cannons . | . . . Explosions 37 | . 37 . Melee . | . . . Ramming 2 | . 2 . Kinetic 405 | . 255 150 Thermal 77 | . 37 40 Explosive . | . . . Electromagnetic 558 | . 235 323 Impact . | . . . Slashing . | . . . Piercing . | . . . Highest Corruption 11 | . 2 11 Average Corruption 4 | . 2 4 Corruption Purged . | . . . Corruption Blocked . | . . . Effects 7 | . 1 6 Message Errors 1 | . 1 . Matter Fused 1 | . . 1 Energy Discharges 1 | . . 1 Data Loss (minor) 1 | . . 1 Misfires 1 | . . 1 Weapon Failures 2 | . . 2 Overload Shots . | . . . Overflow Damage 22 | . 22 . Projectiles . | . . . Explosions 22 | . 22 . Melee . | . . . Knockbacks . | . . . Impact . | . . . Kinetic . | . . . Secondary . | . . . Self-Inflicted Damage . | . . . Shots . | . . . Rammed . | . . . Targets Rammed 1 | . 1 . Kicked 1 | . 1 . Crushed . | . . . Highest Temperature 99 | . 99 1 Average Temperature 24 | . 26 1 Received Heat Transfer 399 | . 249 150 Siege Activations . | . . . Robots Corrupted 1 | . . 1 Combat Hostiles 1 | . . 1 Parts Fried 1 | . 1 . Impact Corruptions . | . . . Robots Melted . | . . . Combat Hostiles . | . . . Parts Melted . | . . . Heat Transferred 100 | . 50 50 Parts Sabotaged . | . . . Parts Stolen . | . . . Parts Stripped . | . . . Power Chain Reactions 1 | . 1 . Alert | -11 -10 -10 ------- Run | Yrd Mat Sub Peak Influence 146 | . 146 . Initial . | . . . Average 85 | . 86 . Maximum Alert Level . | . . . Low Security (%) 100 | 100 100 . Level 1 . | . . . Level 2 . | . . . Level 3 . | . . . Level 4 . | . . . Level 5 . | . . . High Security . | . . . Max Security . | . . . Squads Dispatched 1 | . 1 . Investigation . | . . . Extermination . | . . . Reinforcement 1 | . 1 . Assault . | . . . Garrison . | . . . Intercept . | . . . Searches Triggered . | . . . Construction Impeded . | . . . Haulers Reinforced . | . . . Active Scanning Responses . | . . . Cargo Convoy Interrupts . | . . . Stealth | -11 -10 -10 --------- Run | Yrd Mat Sub Distress Signals . | . . . Communications Jammed . | . . . Distress Signals . | . . . Times Spotted 14 | . 5 9 Peak Tracking Total 5 | . 4 5 Tactical Retreats . | . . . Traps | -11 -10 -10 ------- Run | Yrd Mat Sub Traps Triggered . | . . . Indirectly . | . . . Trap Hack Attempts . | . . . Triggered . | . . . Disarmed . | . . . Reprogrammed . | . . . Reused . | . . . Traps Extracted . | . . . Installed . | . . . Triggered . | . . . Machines | -11 -10 -10 ---------- Run | Yrd Mat Sub Machines Disabled 1 | . 1 . Max in Single Turn 1 | . 1 . Machines Repaired . | . . . Machines Dismantled . | . . . Machines Sabotaged . | . . . Overloaded Fab Kills . | . . . Hacking | -11 -10 -10 --------- Run | Yrd Mat Sub Machines Accessed . | . . . Terminals . | . . . Fabricators . | . . . Repair Stations . | . . . Recycling Units . | . . . Scanalyzers . | . . . Garrison Access . | . . . Total Hacks . | . . . Successful . | . . . Failed . | . . . Catastrophic . | . . . Database Lockouts . | . . . Manual . | . . . Terminals . | . . . Fabricators . | . . . Repair Stations . | . . . Recycling Units . | . . . Scanalyzers . | . . . Garrison Access . | . . . Terminal Hacks . | . . . Fabricator Hacks . | . . . Repair Station Hacks . | . . . Recycling Unit Hacks . | . . . Scanalyzer . | . . . Garrison Access Hacks . | . . . Unauthorized Hacks . | . . . Terminals . | . . . Fabricators . | . . . Repair Stations . | . . . Recycling Units . | . . . Scanalyzers . | . . . Garrison Access . | . . . Data Cores Recovered . | . . . Used . | . . . Hacking Detections . | . . . Full Trace Events . | . . . Feedback Events . | . . . Feedback Blocked . | . . . Robot Schematics Acquired . | . . . Robots Built . | . . . Authchips . | . . . Time . | . . . Total Robot Build Rating . | . . . Part Schematics Acquired . | . . . Parts Built . | . . . Authchips . | . . . Time . | . . . Total Part Build Rating . | . . . Parts Repaired . | . . . Time . | . . . Parts Recycled . | . . . Recycled Matter . | . . . Retrieved Matter . | . . . Retrieved Components . | . . . Parts Scanalyzed . | . . . Part Schematics Acquired . | . . . Parts Damaged . | . . . Bothacking | -11 -10 -10 ------------ Run | Yrd Mat Sub Used RIF Installer . | . . . Robots Hacked . | . . . Non-combat . | . . . Combat . | . . . Robot Hacks Applied . | . . . Relay Couplers Released . | . . . Fabnet Peak Effective % . | . . . Robots Rewired . | . . . Allies Hacked . | . . . Hacks Repelled . | . . . Allies | -11 -10 -10 -------- Run | Yrd Mat Sub Total Allies . | . . . Largest Group . | . . . Highest-Rated Group . | . . . Highest-Rated Ally . | . . . Total Orders . | . . . Ally Attacks . | . . . Total Damage . | . . . Kills . | . . . Allies Corrupted . | . . . Allies Melted . | . . . Intel | -11 -10 -10 ------- Run | Yrd Mat Sub Robot Analysis Total . | . . . Derelict Logs Recovered 1 | . . 1 Drone Launches . | . . . Drone Recoveries . | . . . Exploration | -11 -10 -10 ------------- Run | Yrd Mat Sub Turns Passed 580 | 3 316 261 Spaces Moved 324 | 3 156 165 Core . | . . . Treads 3 | . . 3 Legs 221 | 3 156 62 Wheels 100 | . . 100 Hover . | . . . Flight . | . . . Fastest Speed 80 | 120 120 80 Average Speed 109 | 120 123 96 Slowest Speed 190 | 120 190 160 Overloaded Moves . | . . . Propulsion Burnouts . | . . . Robots Hopped . | . . . Cave-ins Triggered . | . . . Exploration Rate (%) 17 | 2 35 15 Regions Visited 2 Branch Regions 1 Pre-discovered Areas 1 | . . 1 Known Exits Taken . | . . . Unknown Exits Taken 2 | 1 1 . Scrap Searched . | . . . Spaces Dug . | . . . Terrain Destroyed 1 | . 1 . Melee . | . . . Projectile . | . . . AOE 1 | . 1 . Terrain Rammed . | . . . Walls Destroyed . | . . . Machines Disabled . | . . . Actions | -11 -10 -10 --------- Run | Yrd Mat Sub Total 428 | 2 216 210 Wait 4 | . 1 3 Move 322 | 2 155 165 Hop . | . . . Pick Up 3 | . 2 1 Fast Attach 10 | . 7 3 Attach 5 | . 2 3 Detach 2 | . 2 . Swap 2 | . 2 . Drop 7 | . 4 3 Fire 72 | . 40 32 Melee . | . . . Ram . | . . . Kick 1 | . 1 . Crush . | . . . Escape Stasis . | . . . Rewire . | . . . Trap . | . . . Miscellaneous . | . . . Route ------- -11/Scrapyard -10/Materials -10/Subcaves (discovered 1 exit: [*Mat]) History --------- Turn | Location | Event 1 | -11/Scrapyard | Discovered new exit (range 1) 4 | -11/Scrapyard | Entered Materials 272 | -10/Materials | Discovered new exit (range 4) 320 | -10/Materials | Entered Subcaves 322 | -10/Subcaves | Discovered new exit (range 10) 325 | -10/Subcaves | Learned location of Storage (-8) 334 | -10/Subcaves | Build established: Mutant 500 | -10/Subcaves | System corruption reached 10% 554 | -10/Subcaves | A Subdweller sparked back to life 554 | -10/Subcaves | A Subdweller sparked back to life 554 | -10/Subcaves | A Subdweller sparked back to life 562 | -10/Subcaves | Core integrity fell below 50% 571 | -10/Subcaves | Core integrity fell below 20% 581 | -10/Subcaves | Destroyed by C8-J2K(R) with Subdweller Machine Gun Last Messages --------------- 00500_ 56-AZ4(R) destroyed. 00502_ Acquired 4 matter. 00504_ Acquired Sub. Laser. 00506_ System corrupted: Component data lost. 00506_ Acquired 18 matter. 00548_ System corrupted: Matter fused (-5). 00548_ System corrupted: Sub. Laser failed to cycle. 00554_ EP-BIC(R) creaks and sparks as it begins to move. 00554_ LQ-3WO(R) creaks and sparks as it begins to move. 00554_ TI-DXU(R) creaks and sparks as it begins to move. 00566_ Sub. Laser shoots sparks and powers down. 00569_ System corrupted: Sub. Machine Gun jammed. 00571_ Wheel destroyed. 00571_ Broken Sub. Laser destroyed. 00573_ Wheel destroyed. 00573_ EP-BIC(R) destroyed. 00576_ Lgt. Ion Engine destroyed. 00577_ Mak. Light Armor Plating destroyed. 00578_ Sub. Machine Gun destroyed. 00579_ Acquired 5 matter. Map ----- +----------------------------------------------------+ | ?????????????????????????????????????????????????? | | ?????????????????????????????????????????????????? | | ?????????????????????????????????????????????????? | | ?????????????????????????????????????????????????? | | ?????????????????????????????????????????????????? | | ?????????????????????????????????????????????????? | | ?????????????????????????????????????????????????? | | ?????????????????????????????????????????????????? | | ?????????????????????????????????????????????????? | | ?????????????????????????????????????????????????? | | ?????????????????????????????????????????????????? | | ?????????????????????????????????????????????????? | | ?????????????????????????????????????????????????? | | ?????????????????????????????????????????????????? | | ?????????????????????????????????????????????????? | | ?????????????????????????????????????????????????? | | ?????????????????????????????????????????????????? | | ???????????????????##????????????????????????????? | | ??????????????????## #????????##?"???????????????? | | ??????????????????? ??????## #"????????????????? | | ??????????????????? ?????? ""????????????????? | | ???????????????????# ##????? ""?????????????????? | | ???????????????????# ###### #??????????????????? | | ???????????????????# ## &< ""#??????????????????? | | ??????????##??###?## ##< <""#??????????????????? | | ??????????# ### ### # @R"""##?????????????????? | | ??????????# #!%R"<" #?????????????????? | | ??????????# ## RR" ### #????????????? | | ??????????## # # < ????????? | | ??????????## ##### ### #????????? | | ??????????# ##???### ##???# # #### #????????? | | ??????????# #?????## #??????#???????????????? | | ??????????## ##??????## ##??????????????????????? | | ??????????# #???????###???????????????????????? | | ??????????## ##?????????????????????????????????? | | ??????????# #?????????????????????????????????? | | ??????????## ##?????????????????????????????????? | | ??????????# ##?????????????????????????????????? | | ??????##### #?????????????????????????????????? | | ??????# ## #?????????????????????????????????? | | ??????## ##?????????????????????????????????? | | ???????# #?????????????????????????????????? | | ??????## # ##?????????????????????????????????? | | ??????# ######??????????????????????????????????? | | ??????# #??????????????????????????????????????? | | ??????# #??????????????????????????????????????? | | ??????## ##??????????????????????????????????????? | | ???##### ##??????????????????????????????????????? | | ???# # ""#??????????????????????????????????????? | | ??##"" ""#??????????????????????????????????????? | +----------------------------------------------------+ Best States ------------- Heat Dissipation 25 Energy Generation 10 Energy Capacity 125 Matter Stores 300 Matter Capacity 300 Sight Range 16 Terrain Scan Density 10 Armor Coverage 100 Evasion (%) 55 Recoil Reduction 1 Item Schematics ----------------- None Robot Schematics ------------------ None Fabricated ------------ Nothing Alien Tech Used ----------------- None Achievements -------------- None Challenges ------------ None Game ------ Seed AbsorptionOmegaShearcannon Manual? 0 Play Time 00:04:59 Cumulative 757.7 hours Start 2024.06.10 @ 10:11:23 End 2024.06.10 @ 10:14:47 Sessions 1 Manual Loads 0 Difficulty Rogue Special Mode None Game No. 846 Rogue 570 Adventurer 123 Explorer 153 Win Type - Total 28 Types 22/0/4/1/0/0/0/1/0 Lore% 84 Gallery% 92 Achievement% 76 Wizard Run 0 Options --------- Layout 0 ASCII 0 Keyboard 1 Movement Numpad Keybinds 0 Fullscreen 2 Font 18/Terminus Map View 76x50 Zoom Use 0% Tactical HUD 1 Map Filters NONE Filters SHIFT_HUE(360) Steam 1 RUN: 3bc25e4a-c20e-4f23-b3f3-e5538ab420c9